Workbook

Sheet 1包
A1: 报价单（TGJA-WZ-202180）1包
A2: 序号 | B2: 物料描述 | C2: 材质 | D2: 型号规格（mm） | E2: 单位 | F2: 数量 | G2: 单价 （元） | H2: 合价 （元） | I2: 税率 | J2: 到货日期 | K2: 备注（报价含运费一票制结算开具13%增值税专用发票，材料供完后开具发票当月入账，入账后次月付50%，年底付30%，剩余20%后两年内付清。）
A3: 1 | B3: 焊接钢管 | C3: Q235B | D3: φ33.5*2.0 | E3: 吨 | F3: =3.172559376*1.03 -> 3.268 | I3: 13% | J3: 2021.11.15 | K3: 国标理算，镀锌含量275克，按米重1.554公斤发货至铜陵有色建安钢构有限责任公司。
A4: 2 | B4: 角钢 | C4: Q235B | D4: L70*5 | E4: 吨 | F4: 25.480 | I4: 13% | J4: 2021.11.15 | K4: 国标理算，镀锌含量275克，按米重5.397公斤发货至铜陵有色建安钢构有限责任公司。
A5: 3 | B5: 角钢 | C5: Q235B | D5: L50*3 | E5: 吨 | F5: =0.32593*1.03 -> 0.336 | I5: 13% | J5: 2021.11.15 | K5: 国标理算，镀锌含量275克，按米重2.332公斤发货至铜陵有色建安钢构有限责任公司。
A6: 4 | B6: 角钢 | C6: Q235B | D6: L50*5 | E6: 吨 | F6: =2.7068401252882*1.03 -> 2.788 | I6: 13% | J6: 2021.11.15 | K6: 国标理算，镀锌含量275克，按米重3.77公斤发货至铜陵有色建安钢构有限责任公司。
A7: 5 | B7: 圆钢 | C7: Q235B | D7: φ12 | E7: 吨 | F7: =15.819044016849*1.03 -> 16.294 | I7: 13% | J7: 2021.11.15 | K7: 国标理算，镀锌含量275克，按米重0.888公斤发货至铜陵有色建安钢构有限责任公司。
A8: 6 | B8: 矩形管 | C8: Q235B | D8: □100*50*3 | E8: 吨 | F8: 4.269 | I8: 13% | J8: 2021.11.15 | K8: 国标理算，镀锌含量275克，按米重6.782公斤发货至铜陵有色建安钢构有限责任公司。
A9: 7 | B9: 成品H型钢 | C9: Q235B | D9: HW250*250*9*14 | E9: 吨 | F9: =4.63828*1.03 -> 4.777 | I9: 13% | J9: 2021.11.15 | K9: 国标理算，按米重72.4公斤发货至铜陵有色建安钢构有限责任公司。
A10: 8 | B10: 槽钢 | C10: Q235B | D10: [10 | E10: 吨 | F10: =0.171*1.03 -> 0.176 | I10: 13% | J10: 2021.11.15 | K10: 国标理算，按米重10.007公斤发货至铜陵有色建安钢构有限责任公司。
A11: 9 | B11: 槽钢 | C11: Q235B | D11: [12.6a | E11: 吨 | F11: =0.05208*1.03 -> 0.054 | I11: 13% | J11: 2021.11.15 | K11: 国标理算，按米重12.059公斤发货至铜陵有色建安钢构有限责任公司。
A12: 10 | B12: 槽钢 | C12: Q235B | D12: [25a | E12: 吨 | F12: =13.80225*1.03 -> 14.216 | I12: 13% | J12: 2021.11.15 | K12: 国标理算，按米重27.41公斤发货至铜陵有色建安钢构有限责任公司。
A13: 11 | B13: 焊接钢管 | C13: Q235B | D13: φ102*3.0 | E13: 吨 | F13: =0.7200475*1.03 -> 0.742 | I13: 13% | J13: 2021.11.15 | K13: 国标理算，按米重7.324公斤发货至铜陵有色建安钢构有限责任公司。
A14: 12 | B14: 焊接钢管 | C14: Q235B | D14: φ114*3.0 | E14: 吨 | F14: =6.5727*1.03 -> 6.770 | I14: 13% | J14: 2021.11.15 | K14: 国标理算，按米重8.212公斤发货至铜陵有色建安钢构有限责任公司。
A15: 13 | B15: 焊接钢管 | C15: Q235B | D15: φ121*3.0 | E15: 吨 | F15: =5.498591*1.03 -> 5.664 | I15: 13% | J15: 2021.11.15 | K15: 国标理算，按米重8.73公斤发货至铜陵有色建安钢构有限责任公司。
A16: 14 | B16: 圆钢 | C16: Q235B | D16: φ20 | E16: 吨 | F16: =6.1142427205052*1.03 -> 6.298 | I16: 13% | J16: 2021.11.15 | K16: 国标理算，按米重2.47公斤发货至铜陵有色建安钢构有限责任公司。
A17: 15 | B17: 角钢 | C17: Q235B | D17: L100*10 | E17: 吨 | F17: =0.677688*1.03 -> 0.698 | I17: 13% | J17: 2021.11.15 | K17: 国标理算，按米重15.12公斤发货至铜陵有色建安钢构有限责任公司。
A18: 16 | B18: 角钢 | C18: Q235B | D18: L100*80*6 | E18: 吨 | F18: =4.4334445568841*1.03 -> 4.566 | I18: 13% | J18: 2021.11.15 | K18: 国标理算，按米重8.35公斤发货至铜陵有色建安钢构有限责任公司。
A19: 17 | B19: 角钢 | C19: Q235B | D19: L50*4 | E19: 吨 | F19: =0.03958416*1.03 -> 0.041 | I19: 13% | J19: 2021.11.15 | K19: 国标理算，按米重3.059公斤发货至铜陵有色建安钢构有限责任公司。
A20: 18 | B20: 角钢 | C20: Q235B | D20: L50*5 | E20: 吨 | F20: =0.0515736*1.03 -> 0.053 | I20: 13% | J20: 2021.11.15 | K20: 国标理算，按米重3.77公斤发货至铜陵有色建安钢构有限责任公司。
A21: 19 | B21: 角钢 | C21: Q235B | D21: L63*5 | E21: 吨 | F21: =0.1671576*1.03 -> 0.172 | I21: 13% | J21: 2021.11.15 | K21: 国标理算，按米重4.822公斤发货至铜陵有色建安钢构有限责任公司。
A22: 20 | B22: 角钢 | C22: Q235B | D22: L70*6 | E22: 吨 | F22: =0.114154744*1.03 -> 0.118 | I22: 13% | J22: 2021.11.15 | K22: 国标理算，按米重6.406公斤发货至铜陵有色建安钢构有限责任公司。
A23: 21 | B23: 角钢 | C23: Q235B | D23: L63*6 | E23: 吨 | F23: =1.9444568*1.03 -> 2.003 | I23: 13% | J23: 2021.11.15 | K23: 国标理算，按米重5.721公斤发货至铜陵有色建安钢构有限责任公司。
A24: 22 | B24: 角钢 | C24: Q235B | D24: L75*5 | E24: 吨 | F24: =0.1095*1.03 -> 0.113 | I24: 13% | J24: 2021.11.15 | K24: 国标理算，按米重5.818公斤发货至铜陵有色建安钢构有限责任公司。
A25: 23 | B25: 角钢 | C25: Q235B | D25: L90*56*6 | E25: 吨 | F25: =4.4733335095518*1.03 -> 4.608 | I25: 13% | J25: 2021.11.15 | K25: 国标理算，按米重6.717公斤发货至铜陵有色建安钢构有限责任公司。
A26: 24 | B26: 花纹钢板 | C26: Q235B | D26: 6mm扁豆型 | E26: 吨 | F26: =28.33602744*1.03 -> 29.186 | I26: 13% | J26: 2021.11.15 | K26: 国标理算，扁豆型按平方重50.5公斤发货至铜陵有色建安钢构有限责任公司。
B27: 合计（总价） | F27: =SUM(F3:F26) -> 132.688
K28: 密封报价装订信封，信封上注明公司名称及报价单单号，快递到指定地点：铜陵有色金属集团铜冠建筑安装股份有限公司经营部黄赟18656211500收（长江西路2571号主楼三楼）
A29: 说明 1.材料符合GB/T3274-2017；GB/T700-2006；GB/T706-2016；，质量保证书随货同行，未到视同未到货。 2.运费供方承担，5日内发货完毕；严格按需方要求时间供货 ，若不能按时供货按晚一天2000元进行罚款。 3.按国标验收，如发现质量问题，提货后十日内提出，供方3天内无条件换货往返费用供方承担 4.合同签订后，货到验收合格后开具13%增值税专用发票，材料供完后开具发票当月入账，入账后次月付50%，年底付30%，剩余20%后两年内付清。 5.本合同在履行过程中发生争议，由双方当事人协商解决；也可由需方当地工商行政管理部门调解；如调解不成也可向需方当地人民法院进行起诉。
A30: 投标人单位（公章） | E30: 法定代表人或授权代理人
E31: 联系方式 | I31: 电话：
I32: 邮箱：

Sheet 2包
A1: 报价单（TGJA-WZ-202180）2包
A2: 序号 | B2: 物料描述 | C2: 材质 | D2: 型号规格（mm） | E2: 单位 | F2: 数量 | G2: 单价 （元） | H2: 合价 （元） | I2: 税率 | J2: 到货日期 | K2: 备注（报价含运费一票制结算开具13%增值税专用发票，材料供完后开具发票当月入账，入账后次月付50%，年底付30%，剩余20%后两年内付清。）
A3: 1 | B3: 镀锌C型钢 | C3: Q355B | D3: C200*70*20*2.0 | E3: 吨 | F3: =0.344884*1.03 -> 0.355 | I3: 13% | J3: 2021.11.25 | K3: 国标理算，镀锌含量275克，按米重5.652公斤发货至铜陵有色建安钢构有限责任公司或浙江诸暨海亮施工现场。
A4: 2 | B4: 镀锌C型钢 | C4: Q355B | D4: C220*75*20*1.8 | E4: 吨 | F4: =0.653212*1.03 -> 0.673 | I4: 13% | J4: 2021.11.25 | K4: 国标理算，镀锌含量275克，按米重5.511公斤发货至铜陵有色建安钢构有限责任公司或浙江诸暨海亮施工现场。
A5: 3 | B5: 镀锌C型钢 | C5: Q355B | D5: C200*75*20*2.0 | E5: 吨 | F5: =3.067*1.03 -> 3.159 | I5: 13% | J5: 2021.11.25 | K5: 国标理算，镀锌含量275克，按米重5.809公斤发货至铜陵有色建安钢构有限责任公司或浙江诸暨海亮施工现场。
A6: 4 | B6: 镀锌C型钢 | C6: Q355B | D6: C220*75*20*2.0 | E6: 吨 | F6: =13.00581*1.03 -> 13.396 | I6: 13% | J6: 2021.11.25 | K6: 国标理算，镀锌含量275克，按米重6.123公斤发货至铜陵有色建安钢构有限责任公司或浙江诸暨海亮施工现场。
A7: 5 | B7: 镀锌C型钢 | C7: Q355B | D7: C250*75*20*2.0 | E7: 吨 | F7: =47.7561504*1.03 -> 49.189 | I7: 13% | J7: 2021.11.25 | K7: 国标理算，镀锌含量275克，按米重6.594公斤发货至铜陵有色建安钢构有限责任公司或浙江诸暨海亮施工现场。
A8: 6 | B8: 镀锌C型钢 | C8: Q355B | D8: C250*75*20*2.2 | E8: 吨 | F8: =11.69*1.03 -> 12.041 | I8: 13% | J8: 2021.11.25 | K8: 国标理算，镀锌含量275克，按米重7.253公斤发货至铜陵有色建安钢构有限责任公司或浙江诸暨海亮施工现场。
A9: 7 | B9: 镀锌Z型钢 | C9: Q355B | D9: Z250*75*20*2.0 | E9: 吨 | F9: =92.0018*1.03 -> 94.762 | I9: 13% | J9: 2021.11.25 | K9: 国标理算，镀锌含量275克，按米重6.751公斤发货至浙江诸暨海亮施工现场
A10: 8 | B10: 镀锌Z型钢 | C10: Q355B | D10: Z250*75*20*2.5 | E10: 吨 | F10: =7.67608*1.03 -> 7.906 | I10: 13% | J10: 2021.11.25 | K10: 国标理算，镀锌含量275克，按米重8.439公斤发货至浙江诸暨海亮施工现场
B11: 合计（总价） | F11: =SUM(F3:F10) -> 181.481
K12: 密封报价装订信封，信封上注明公司名称及报价单单号，快递到指定地点：铜陵有色金属集团铜冠建筑安装股份有限公司经营部黄赟18656211500收（长江西路2571号主楼三楼）
A13: 说明 1.材料符合GB∕T 6725-2017 冷弯型钢技术要求，质量保证书随货同行，未到视同未到货。 2.运费供方承担，5日内发货完毕；严格按需方要求时间供货 ，若不能按时供货按晚一天2000元进行罚款。 3.按国标验收，如发现质量问题，提货后十日内提出，供方3天内无条件换货往返费用供方承担 4.合同签订后，货到验收合格后开具13%增值税专用发票，材料供完后开具发票当月入账，入账后次月付50%，年底付30%，剩余20%后两年内付清。 5.本合同在履行过程中发生争议，由双方当事人协商解决；也可由需方当地工商行政管理部门调解；如调解不成也可向需方当地人民法院进行起诉。
A14: 投标人单位（公章） | E14: 法定代表人或授权代理人
E15: 联系方式 | I15: 电话：
I16: 邮箱：
